[Event "Istanbul Open 2018"]
[Site "Istanbul"]
[Date "2018.09.04"]
[Round "4"]
[White "Kavacik, Ahmet"]
[Black "Koc, Deniz"]
[Result "1-0"]
[ECO "B14"]
[WhiteElo "1800"]
[BlackElo "1540"]
[Annotator "NA RC"]
[PlyCount "109"]
[EventDate "2018.09.02"]
[EventType "swiss"]
[EventCountry "TUR"]
[SourceTitle "playchess.com"]
[Source "ChessBase"]
[SourceQuality "1"]
[TimeControl "5400+30"]

{[%evp 8,81,22,20,10,6,23,7,16,26,26,13,13,18,20,25,25,32767,32767,32767,43,15,44,28,27,13,33,12,56,52,32767,32767,32767,32767,180,196,180,202,186,164,145,148,190,202,187,186,197,200,32767,32767,32767,215,32767,32767,32767,32767,32767,32767,137,138,32767,32767,32767,32767,32767,32767,219,32767,32767,32767,231,242,357,416,178,243]} 1. Nf3 {[%emt 0:03:30]} Nf6 {[%emt 0:00:30]} 2. d4 {[%emt 0:01:30]} c5 {[%emt 0:00:30]} 3. e3 {[%emt 0:01:30]} d5 {[%emt 0:01:30]} 4. c4 {[%emt 0:01:30]} cxd4 {[%emt 0:02:30]} 5. exd4 {[%emt 0:00:00]} Nc6 {[%emt 0:01:30]} 6. Nc3 {[%emt 0:00:00]} e6 {[%emt 0:00:30]} 7. Bg5 {[%emt 0:00:30]} Be7 {[%emt 0:00:30]} 8. c5 {[%emt 0:01:30]} O-O {[%emt 0:00:30]} 9. Bb5 {[%emt 0:00:30]} h6 {[%emt 0:02:30] B14: Caro-Kann: Panov-Botvinnik Attack with 5...e6 and 5...g6} (9... Bd7 10. O-O b6 11. Bxc6 Bxc6 12. b4 bxc5 13. bxc5 Ne4 14. Bxe7 Qxe7 15. Qc2 f6 16. Rab1 Rab8 17. Rb3 Rxb3 18. Qxb3 Nxc3 19. Qxc3 {1-0 (43) Akobian,V (2647)-Tregubov,P (2575) Riadh 2017}) 10. Bh4 {[%emt 0:00:00] LiveBook: 4 Games} Bd7 {[%emt 0:02:30]} 11. O-O {[%emt 0:01:00]} b6 {[%emt 0:05:30]} 12. Bxc6 {[%emt 0:04:30]} Bxc6 {[%emt 0:00:30]} 13. b4 {[%emt 0:00:00]} bxc5 {[%emt 0:01:30]} 14. bxc5 {[%emt 0:00:00]} Nd7 $146 {[%emt 0:03:30]} ({Predecessor:} 14... Ne4 15. Bxe7 Qxe7 16. Qc2 f6 17. Rfe1 Rac8 {½-½ (36) Banas,J (2395)-Varga,Z (2250) Gyor 1990}) 15. Bxe7 {[%emt 0:05:30]} Qxe7 {[%emt 0:00:30]} 16. Qe2 {[%emt 0:02:30]} Rfe8 {[%emt 0:00:30]} 17. a4 {[%emt 0:00:30]} e5 {[%emt 0:07:30]} 18. Nb5 {[%emt 0:15:30]} exd4 {[%emt 0:03:30]} 19. Qxe7 {[%emt 0:00:30]} Rxe7 {[%emt 0:00:30]} 20. Nbxd4 {[%emt 0:00:30]} Rc8 {[%emt 0:01:30] [#]} (20... Nb8 $1 $14) 21. Nf5 $1 {[%emt 0:49:30]} Ree8 {[%emt 0:48:30]} 22. Nd6 $1 {[%emt 0:07:30]} Nxc5 {[%emt 0:00:00]} 23. Nxc8 {[%emt 0:06:30]} Rxc8 {[%emt 0:00:00]} 24. Rac1 {[%emt 0:03:30]} Nxa4 {[%emt 0:03:30]} (24... Bxa4 $16 {was worth a try.} 25. Rc3 Bb5) 25. Ne5 {[%emt 0:01:30]} Bb7 {[%emt 0:00:30]} 26. Rxc8+ {[%emt 0:00:30]} Bxc8 {[%emt 0:00:00]} 27. Ra1 {[%emt 0:01:30]} Nb2 {[%emt 0:00:00]} 28. Rxa7 {[%emt 0:00:00]} Be6 {[%emt 0:01:30]} 29. Ra8+ {[%emt 0:05:00]} Kh7 {[%emt 0:00:30]} 30. Ra2 {[%emt 0:00:30]} Nc4 {[%emt 0:00:30]} 31. Nxc4 {[%emt 0:00:00]} dxc4 {[%emt 0:00:00]} 32. Kf1 {[%emt 0:00:00]} Bf5 {[%emt 0:01:00]} 33. Ke2 {[%emt 0:02:30]} Bd3+ {[%emt 0:02:30]} 34. Kd2 {[%emt 0:00:30]} Bf1 {[%emt 0:00:30]} 35. g3 {[%emt 0:00:30]} Kg6 {[%emt 0:00:30]} 36. Ra5 {[%emt 0:00:30]} f5 {[%emt 0:02:30]} 37. Ra7 {[%emt 0:04:30]} Kf6 {[%emt 0:01:30]} 38. Ke3 {[%emt 0:01:30]} Bd3 {[%emt 0:00:30]} 39. Rc7 {[%emt 0:00:30]} g5 {[%emt 1:13:30]} 40. Rc6+ {[%emt 0:00:30]} Kg7 {[%emt 0:00:00]} 41. h4 $18 {[%emt 0:01:30]} gxh4 42. gxh4 Kh7 43. Kf4 Bb1 44. Ke5 Kg7 45. h5 Bd3 46. Rc7+ Kg8 47. f4 {[%emt 1:36:20]} Be2 {[%emt 1:36:40]} 48. Kxf5 {[%emt 0:00:30]} Bxh5 {[%emt 0:00:30]} 49. Rxc4 {[%emt 0:00:30]} Be2 {[%emt 0:00:46]} 50. Rc3 {[%emt 0:01:12]} h5 {[%emt 0:00:16]} 51. Kg6 {[%emt 0:00:15]} Kf8 {[%emt 0:00:11]} 52. Rc7 {[%emt 0:00:10]} Bd1 {[%emt 0:01:18]} 53. f5 {[%emt 0:02:14]} Bg4 {[%emt 0:00:18]} 54. f6 {[%emt 0:00:21]} h4 {[%emt 0:00:25]} 55. Kg5 {[%emt 0:00:28]} 1-0

[Event "Istanbul Open 2018"]
[Site "Istanbul"]
[Date "2018.09.04"]
[Round "4"]
[White "Sar, Can"]
[Black "Cibik, Huseyin Bora"]
[Result "1-0"]
[ECO "C10"]
[WhiteElo "1800"]
[BlackElo "1666"]
[Annotator "NA RC"]
[PlyCount "89"]
[EventDate "2018.09.02"]
[EventType "swiss"]
[EventCountry "TUR"]
[SourceTitle "playchess.com"]
[Source "ChessBase"]
[SourceQuality "1"]
[TimeControl "5400+30"]

{[%evp 11,89,32,35,35,35,41,45,25,36,19,21,32767,32767,32767,32767,32767,45,29,110,119,279,285,293,285,298,285,307,345,479,212,32767,32767,32767,32767,223,216,235,235,391,124,123,120,235,257,222,120,118,126,32767,32767,32767,32767,168,213,203,32767,32767,32767,118,32767,32767,32767,109,32767,120,856,437,610,32767,32767,1020,32767,32767,32767,5061,32767,6079,29962,29942,29978]} 1. e4 {[%emt 0:00:30]} e6 {[%emt 0:00:30]} 2. d4 {[%emt 0:00:00]} d5 {[%emt 0:01:30]} 3. Nd2 {[%emt 0:04:00]} dxe4 {[%emt 0:00:30]} 4. Nxe4 {[%emt 0:00:30]} Nd7 {[%emt 0:00:30]} 5. Nf3 {[%emt 0:00:30]} Ngf6 {[%emt 0:00:30]} 6. Nxf6+ {[%emt 0:01:30]} Nxf6 {[%emt 0:00:30]} 7. Bd3 {[%emt 0:01:30]} Be7 {[%emt 0:00:30]} 8. O-O {[%emt 0:00:30] LiveBook: 86 Games} O-O {[%emt 0:00:30]} 9. Bf4 {[%emt 0:01:30]} b6 {[%emt 0:00:30]} 10. Re1 {[%emt 0:03:30]} Bb7 {[%emt 0:00:30]} 11. c3 {[%emt 0:00:30]} c5 {[%emt 0:00:30]} 12. dxc5 {[%emt 0:00:30]} Bxc5 {[%emt 0:00:30]} 13. Qe2 {[%emt 0:02:30]} Nd5 {[%emt 0:05:30] C10: French with 3 Nc3: Unusual Black 3rd moves and 3...dxe4} (13... Qe7 14. Rad1 Rfd8 15. Bg5 h6 16. Bxf6 Qxf6 17. Be4 Qe7 18. Bxb7 Qxb7 19. Ne5 Qc7 20. Qe4 Rac8 21. Nf3 {½-½ (56) Wengler,J (2125)-Andersson,U (2582) Bad Wiessee 2011}) 14. Be5 $146 {[%emt 0:11:30]} ({Predecessor:} 14. Bg3 Qf6 15. Be4 Qh6 16. h3 Rae8 17. Ne5 f5 18. Bf3 Bc8 19. Rad1 a5 20. a3 Qf6 21. c4 f4 22. Bh2 Ne3 23. Nd7 Bxd7 {0-1 (23) Bors,S (2124)-Kiss,J (2112) Hungary 2008}) 14... f6 {[%emt 0:13:30]} ({Black should play} 14... Qe7 $14) 15. Bg3 {[%emt 0:00:30]} e5 $2 {[%emt 0:01:30]} (15... Re8 $16) 16. Rad1 {[%emt 0:01:30]} Qc7 {[%emt 0:23:30]} 17. Qe4 {[%emt 0:06:30]} f5 {[%emt 0:46:30]} 18. Qxe5 {[%emt 0:00:30]} Qxe5 {[%emt 0:01:30]} 19. Bxe5 {[%emt 0:40:30]} ({Bloß nicht} 19. Nxe5 Rad8 $18) ({Keinesfalls} 19. Rxe5 Kh8) 19... Rad8 {[%emt 0:55:30]} (19... Rac8 $142 20. Bc2 Nf6) 20. Nd4 {[%emt 0:00:30]} (20. Ng5 $142) 20... Bxd4 {[%emt 0:00:30]} 21. Bxd4 {[%emt 0:00:30]} Nf4 {[%emt 0:00:30]} 22. Bf1 {[%emt 0:00:30]} Rfe8 {[%emt 0:01:30]} 23. g3 {[%emt 0:01:30]} Ne6 {[%emt 0:02:30]} 24. Bc4 {[%emt 0:01:30]} Bd5 {[%emt 0:02:30] [#]} (24... Kf7 {was necessary.} 25. Re5 g6) 25. Bxd5 $2 {[%emt 0:01:30]} (25. Bxb6 $1 $18 {[%mdl 512]} axb6 26. Rxd5 Rxd5 27. Bxd5) 25... Rxd5 {[%emt 0:00:30]} 26. Be3 {[%emt 0:00:30]} Red8 {[%emt 0:01:30]} (26... Ra5 $16) 27. Rxd5 {[%emt 0:00:30]} Rxd5 {[%emt 0:00:00] [#]} 28. Kf1 {[%emt 0:00:30]} (28. Bxb6 $1 $18 {[%mdl 512]} Kf7 (28... axb6 29. Rxe6) 29. Be3 (29. Bxa7 Ra5 $18)) 28... Kf7 {[%emt 0:01:00]} 29. Ke2 {[%emt 0:00:30]} h6 {[%emt 0:02:30]} 30. Rd1 {[%emt 0:00:00]} Rxd1 {[%emt 0:00:30]} 31. Kxd1 {[%emt 0:00:00]} g5 {[%emt 0:00:30]} 32. Ke2 {[%emt 0:00:30]} f4 {[%emt 0:01:30]} 33. Bd2 {[%emt 0:00:30]} Kf6 {[%emt 0:01:30]} 34. f3 {[%emt 0:01:30]} fxg3 {[%emt 0:03:30]} 35. hxg3 {[%emt 0:00:30]} h5 {[%emt 0:00:00]} 36. Be1 {[%emt 0:00:30]} Ke5 {[%emt 0:03:00]} 37. Bf2 {[%emt 0:02:30]} Nc5 {[%emt 0:02:30]} 38. Bxc5 {[%emt 0:03:30]} bxc5 {[%emt 0:00:30]} 39. b3 {[%emt 0:00:30]} h4 {[%emt 0:03:30]} 40. Kf2 {[%emt 0:00:00]} Kf5 {[%emt 0:03:30]} 41. Kg2 {[%emt 0:01:00]} Ke5 {[%emt 0:00:30]} 42. Kh3 {[%emt 0:00:30]} a6 {[%emt 0:00:30]} 43. a3 {[%emt 0:01:30]} Kd5 {[%emt 0:02:20]} 44. gxh4 {[%emt 0:00:30]} gxh4 {[%emt 0:00:35]} 45. Kxh4 {[%emt 0:00:30]} 1-0

[Event "Istanbul Open 2018"]
[Site "Istanbul"]
[Date "2018.09.04"]
[Round "4"]
[White "Sarikavak, Serdar Ihsan"]
[Black "Kuseyri, Mehmet Ali"]
[Result "0-1"]
[ECO "C50"]
[WhiteElo "1798"]
[BlackElo "1962"]
[Annotator "NA RC"]
[PlyCount "52"]
[EventDate "2018.09.02"]
[EventType "swiss"]
[EventCountry "TUR"]
[SourceTitle "playchess.com"]
[Source "ChessBase"]
[SourceQuality "1"]
[TimeControl "5400+30"]

{[%evp 13,46,-59,0,0,0,-33,12,0,8,17,18,9,0,-37,-27,-45,-43,-63,-59,-73,-65,-64,-59,-53,-64,32767,32767,32767,-78,-91,-79,32767,-108,32767,-233]} 1. e4 {[%emt 0:00:30]} e5 {[%emt 0:00:30]} 2. Nf3 {[%emt 0:00:30]} Nc6 {[%emt 0:00:00]} 3. Bc4 {[%emt 0:00:00]} Bc5 {[%emt 0:00:00]} 4. O-O {[%emt 0:00:00]} Nf6 {[%emt 0:00:30]} 5. d4 {[%emt 0:00:30]} Bxd4 {[%emt 0:00:30]} 6. Nxd4 {[%emt 0:00:00]} Nxd4 {[%emt 0:00:30]} 7. Bg5 {[%emt 0:00:00]} d6 {[%emt 0:01:00]} 8. f4 {[%emt 0:00:30]} Be6 {[%emt 0:02:30]} 9. Na3 {[%emt 0:02:30] LiveBook: 7 Games} Qe7 {[%emt 0:02:30]} 10. fxe5 {[%emt 0:07:30]} dxe5 {[%emt 0:00:00]} 11. c3 {[%emt 0:00:30]} Nc6 {[%emt 0:02:00]} 12. Kh1 {[%emt 0:16:30]} Rg8 {[%emt 0:11:30]} 13. Qf3 {[%emt 0:31:30]} O-O-O {[%emt 0:00:30]} 14. Bxf6 {[%emt 0:04:30]} gxf6 {[%emt 0:00:30]} 15. Qxf6 {[%emt 1:07:30]} Rd2 {[%emt 0:29:30]} 16. Qxe7 {[%emt 0:02:30]} Nxe7 {[%emt 0:00:30]} 17. Bxe6+ {[%emt 0:07:30]} fxe6 {[%emt 0:00:00]} 18. Nc4 {[%emt 0:08:07]} Rdxg2 {[%emt 0:02:00]} 19. Rf8+ {[%emt 0:09:34]} Rxf8 {[%emt 0:00:30]} 20. Kxg2 {[%emt 0:00:03]} Rf4 {[%emt 0:03:30]} 21. Re1 {[%emt 0:00:24] [#]} Ng6 $1 {[%emt 0:00:30]} 22. Kg3 {[%emt 0:00:31]} h5 {[%emt 0:01:30]} 23. h4 {[%emt 0:00:44]} Rg4+ $19 {[%emt 0:00:30]} 24. Kf3 {[%emt 0:04:24]} Nxh4+ {[%emt 0:00:30]} 25. Ke2 {[%emt 0:00:36]} Rxe4+ {[%emt 0:00:00]} 26. Ne3 {[%emt 0:00:17]} Rxe3+ {[%emt 0:00:00]} 0-1

[Event "Istanbul Open 2018"]
[Site "Istanbul"]
[Date "2018.09.04"]
[Round "4"]
[White "Satici, Aydin"]
[Black "Acar, Cengiz Can"]
[Result "0-1"]
[ECO "A16"]
[WhiteElo "1605"]
[BlackElo "1755"]
[Annotator "NA RC"]
[PlyCount "128"]
[EventDate "2018.09.02"]
[EventType "swiss"]
[EventCountry "TUR"]
[SourceTitle "playchess.com"]
[Source "ChessBase"]
[SourceQuality "1"]
[TimeControl "5400+30"]

1. c4 g6 2. g3 Bg7 3. Bg2 Nf6 4. Nc3 O-O 5. Rb1 c6 6. e4 e5 7. Nge2 d6 8. O-O Be6 9. d3 Nbd7 10. h3 Ne8 11. f4 f5 12. Be3 h6 13. Qd2 Kh7 14. b3 Nc7 15. d4 Bg8 16. Rbd1 exf4 17. Nxf4 g5 18. Nh5 fxe4 19. Nxe4 d5 20. Nxg5+ hxg5 21. Bxg5 Bxd4+ 22. Kh2 Qe8 23. Nf4 Bf6 24. Rde1 Qf7 25. Qd3+ Kg7 26. Qf5 Bh7 27. Qg4 Kh8 28. Nh5 Ne8 {[%emt 1:43:13]} 29. cxd5 {[%emt 1:33:12]} Rg8 {[%emt 0:00:40]} 30. Nxf6 {[%emt 0:02:25]} Nexf6 {[%emt 0:00:23]} 31. Qh4 {[%emt 0:04:07]} Rxg5 {[%emt 0:00:30]} 32. Qxg5 {[%emt 0:00:03]} cxd5 {[%emt 0:00:29]} 33. Rf4 {[%emt 0:01:15]} Rg8 {[%emt 0:00:35]} 34. Qh4 {[%emt 0:00:25]} Re8 {[%emt 0:00:28]} 35. Ref1 {[%emt 0:00:10]} Rf8 {[%emt 0:00:18]} 36. g4 {[%emt 0:00:41]} Qg7 {[%emt 0:00:42]} 37. g5 {[%emt 0:00:51]} Ne4 {[%emt 0:00:11]} 38. Rxf8+ {[%emt 0:00:49]} Nxf8 {[%emt 0:00:01]} 39. Bxe4 {[%emt 0:00:41]} dxe4 {[%emt 0:00:05]} 40. Qf4 {[%emt 0:01:41]} Ne6 {[%emt 0:00:46]} 41. Qd6 {[%emt 0:01:56]} Nxg5 {[%emt 0:00:43]} 42. Qb8+ {[%emt 0:01:55]} Bg8 {[%emt 0:00:05]} 43. Qg3 {[%emt 0:00:24]} Nf3+ {[%emt 0:01:35]} 44. Kg2 {[%emt 0:00:39]} Bd5 {[%emt 0:00:08]} 45. Rc1 {[%emt 0:00:35]} Bc6 {[%emt 0:00:22]} 46. Rc5 {[%emt 0:00:22]} Qxg3+ {[%emt 0:01:04]} 47. Kxg3 {[%emt 0:00:03]} Kg7 {[%emt 0:00:14]} 48. Kf4 {[%emt 0:00:24]} Kf6 {[%emt 0:00:35]} 49. b4 {[%emt 0:00:30]} a6 {[%emt 0:00:21]} 50. Rh5 {[%emt 0:00:43]} Kg6 {[%emt 0:00:15]} 51. Rc5 {[%emt 0:00:14]} Ne1 {[%emt 0:00:28]} 52. Rg5+ {[%emt 0:00:33]} Kh6 {[%emt 0:00:50]} 53. Rg4 {[%emt 0:01:20]} Nd3+ {[%emt 0:00:26]} 54. Ke3 {[%emt 0:00:12]} Nxb4 {[%emt 0:00:09]} 55. Rg2 {[%emt 0:00:20]} Nd5+ {[%emt 0:00:41]} 56. Kd4 {[%emt 0:00:08]} Kh5 {[%emt 0:00:51]} 57. Rg8 {[%emt 0:00:43]} Nf4 {[%emt 0:00:34]} 58. Rh8+ {[%emt 0:00:20]} Kg5 {[%emt 0:00:18]} 59. Ke3 {[%emt 0:00:31]} Ng2+ {[%emt 0:00:32]} 60. Ke2 {[%emt 0:00:23]} e3 {[%emt 0:00:10]} 61. Rg8+ {[%emt 0:00:26]} Kf4 {[%emt 0:00:07]} 62. Rg4+ {[%emt 0:00:30]} Kf5 {[%emt 0:00:28]} 63. Rb4 {[%emt 0:00:56]} Nf4+ {[%emt 0:00:00]} 64. Ke1 {[%emt 0:00:40]} Nd3+ {[%emt 0:00:00]} 0-1

[Event "Istanbul Open 2018"]
[Site "Istanbul"]
[Date "2018.09.04"]
[Round "4"]
[White "Pektas, Gokdeniz"]
[Black "Hakkaki Fard, Pedram"]
[Result "1-0"]
[ECO "D27"]
[WhiteElo "1602"]
[BlackElo "1815"]
[Annotator "NA RC"]
[PlyCount "49"]
[EventDate "2018.09.02"]
[EventType "swiss"]
[EventCountry "TUR"]
[SourceTitle "playchess.com"]
[Source "ChessBase"]
[SourceQuality "1"]
[TimeControl "5400+30"]

{[%evp 8,40,39,24,39,14,2,10,8,16,32767,32767,20,6,45,0,5,-3,193,177,212,216,237,218,1518,620,610,702,1283,1813,1407,1995,29969,1180,1105]} 1. d4 {[%emt 0:00:30]} d5 {[%emt 0:02:30]} 2. c4 {[%emt 0:00:30]} dxc4 {[%emt 0:00:30]} 3. Nf3 {[%emt 0:00:30]} Nf6 {[%emt 0:06:30]} 4. e3 {[%emt 0:01:30]} e6 {[%emt 0:01:30]} 5. Bxc4 {[%emt 0:00:30]} a6 {[%emt 0:00:30]} 6. a4 {[%emt 0:01:30]} c5 {[%emt 0:07:30]} 7. Nc3 {[%emt 0:03:30]} Nc6 {[%emt 0:02:30]} 8. O-O {[%emt 0:00:30]} cxd4 {[%emt 0:01:30]} 9. exd4 {[%emt 0:00:30]} Nb4 {[%emt 0:07:30]} 10. Bg5 {[%emt 0:08:30] LiveBook: 13 Games} Be7 {[%emt 0:00:30]} 11. Bxf6 $146 {[%emt 0:00:30] D27: Queen's Gambit Accepted: Classical main line: 7 e4!? and 7 a4} ({Predecessor:} 11. Qb3 Nc6 12. Rad1 Nd5 13. Bxd5 Bxg5 14. Be4 Na5 15. Qc2 f5 16. Nxg5 Qxg5 17. Bf3 O-O 18. Qe2 Qf6 {0-1 (57) Li,B (2333)-Varga,Z (2470) Balatonlelle 2018}) 11... Bxf6 {[%emt 0:00:30]} 12. Qb3 {[%emt 0:00:30]} Be7 $2 {[%emt 0:02:30]} (12... Nc6 $1 $11) 13. d5 {[%emt 0:00:30]} Nxd5 {[%emt 0:00:30]} (13... O-O $16 14. dxe6 fxe6 15. Bxe6+ Kh8) 14. Nxd5 {[%emt 0:02:30]} ({Weaker is} 14. Bxd5 exd5 15. Rad1 (15. Nxd5 O-O $14) (15. Qxd5 O-O $14) 15... O-O $14) 14... exd5 {[%emt 0:00:30]} 15. Bxd5 {[%emt 0:00:30]} f6 $2 {[%emt 0:59:30]} (15... O-O 16. Ne5 Qe8) 16. Rfe1 {[%emt 0:00:30]} (16. Bg8 $142 Qa5 17. Qf7+ Kd8 18. Rfd1+ Kc7 19. Qxe7+ Kb8 20. Qxg7 Rxg8 21. Qxg8) 16... Kf8 {[%emt 1:02:00]} 17. Rad1 {[%emt 0:35:30]} Qa5 {[%emt 0:00:30] [#]} 18. Rxe7 $1 {[%emt 0:02:30]} Kxe7 {[%emt 0:01:30]} 19. Qa3+ {[%emt 0:00:00]} Kd8 {[%emt 0:12:30]} 20. Bxb7+ {[%emt 0:00:00]} Bd7 $18 {[%emt 0:04:56]} 21. Bxa8 {[%emt 0:01:30]} Qc7 {[%emt 0:01:07]} 22. Be4 {[%emt 0:00:30]} Kc8 {[%emt 0:00:18]} 23. Qe3 {[%emt 0:00:30]} Kb8 {[%emt 0:00:12]} 24. Rc1 {[%emt 0:00:30]} Qa5 {[%emt 0:03:01]} 25. Qf4+ {[%emt 0:02:30]} 1-0

[Event "Istanbul Open 2018"]
[Site "Istanbul"]
[Date "2018.09.04"]
[Round "4"]
[White "Topsir, Furkan"]
[Black "Eryilmaz, Emre"]
[Result "1-0"]
[ECO "D45"]
[WhiteElo "1550"]
[BlackElo "1432"]
[Annotator "NA RC"]
[PlyCount "67"]
[EventDate "2018.09.02"]
[EventType "swiss"]
[EventCountry "TUR"]
[SourceTitle "playchess.com"]
[Source "ChessBase"]
[SourceQuality "1"]
[TimeControl "5400+30"]

1. d4 d5 2. c4 c6 3. Nf3 Nf6 4. Nc3 e6 5. e3 Bb4 6. Qc2 O-O 7. a3 Bxc3+ 8. bxc3 dxc4 9. Bxc4 b6 10. e4 Nbd7 11. Bd3 h6 12. O-O Bb7 13. c4 c5 14. d5 exd5 15. cxd5 Qc7 16. Bb2 Rfe8 17. Rfe1 Ng4 18. Qc3 f6 19. h3 Nge5 20. Nxe5 Nxe5 21. Bb5 Red8 22. Qg3 c4 23. Bxe5 fxe5 24. Rac1 Rac8 25. Bxc4 Qd6 26. Be2 Rxc1 27. Rxc1 Rc8 28. Rxc8+ Bxc8 29. Qc3 Bb7 30. Qb4 Qd7 31. Bg4 Qe8 {[%emt 1:41:10]} 32. Be6+ {[%emt 1:33:35]} Kh7 {[%emt 0:00:00]} 33. Qd6 {[%emt 0:00:20]} Ba6 {[%emt 0:01:35]} 34. Qxe5 {[%emt 0:01:01]} 1-0

[Event "Istanbul Open 2018"]
[Site "Istanbul"]
[Date "2018.09.04"]
[Round "4"]
[White "Tepeli, Huseyin"]
[Black "Gezici, Omer Ata"]
[Result "0-1"]
[ECO "B36"]
[WhiteElo "1529"]
[BlackElo "1736"]
[Annotator "NA RC"]
[PlyCount "80"]
[EventDate "2018.09.02"]
[EventType "swiss"]
[EventCountry "TUR"]
[SourceTitle "playchess.com"]
[Source "ChessBase"]
[SourceQuality "1"]
[TimeControl "5400+30"]

1. e4 c5 2. Nf3 g6 3. d4 cxd4 4. Nxd4 Nc6 5. c4 Nf6 6. Nc3 Nxd4 7. Qxd4 d6 8. Be2 Bg7 9. O-O O-O 10. Qd1 Be6 11. Rb1 a5 12. Be3 a4 13. f3 Qa5 14. Nd5 Nxd5 15. exd5 Bd7 16. b4 axb3 17. axb3 Qb4 18. Bd4 Ra2 19. Bxg7 Kxg7 20. Qd4+ Kg8 21. Bd3 Rd2 22. Qe3 Ra8 23. Rf2 Raa2 24. Rxd2 Qxd2 25. Qxd2 Rxd2 26. Bf1 Bf5 27. Re1 Kf8 28. g4 Bd3 {[%emt 1:40:43]} 29. f4 {[%emt 1:12:30]} Bxf1 {[%emt 0:00:30]} 30. Rxf1 {[%emt 0:00:30]} Rd3 {[%emt 0:00:30]} 31. Rb1 {[%emt 0:00:30]} Rd4 {[%emt 0:00:30]} 32. Kg2 {[%emt 0:00:30]} Rxf4 {[%emt 0:00:30]} 33. Kg3 {[%emt 0:00:30]} Rd4 {[%emt 0:00:30]} 34. Kf3 {[%emt 0:00:30]} g5 {[%emt 0:00:30]} 35. Ke3 {[%emt 0:00:30]} Rxg4 {[%emt 0:00:27]} 36. Kd3 {[%emt 0:00:30]} Rh4 {[%emt 0:01:55]} 37. Ra1 {[%emt 0:00:30]} Rh3+ {[%emt 0:00:09]} 38. Kc2 {[%emt 0:00:30]} Rxh2+ {[%emt 0:00:02]} 39. Kc3 {[%emt 0:00:30]} g4 {[%emt 0:00:39]} 40. Ra7 {[%emt 0:00:30]} g3 {[%emt 0:00:30]} 0-1

[Event "Istanbul Open 2018"]
[Site "Istanbul"]
[Date "2018.09.04"]
[Round "4"]
[White "Ozates, Veysel"]
[Black "Bayramov, Araz"]
[Result "0-1"]
[ECO "B79"]
[WhiteElo "1508"]
[BlackElo "1750"]
[Annotator "NA RC"]
[PlyCount "112"]
[EventDate "2018.09.02"]
[EventType "swiss"]
[EventCountry "TUR"]
[SourceTitle "playchess.com"]
[Source "ChessBase"]
[SourceQuality "1"]
[TimeControl "5400+30"]

1. e4 c5 2. Nf3 d6 3. d4 cxd4 4. Nxd4 Nf6 5. Nc3 g6 6. Be2 Bg7 7. Be3 O-O 8. Qd2 Nc6 9. O-O-O Nxd4 10. Bxd4 Be6 11. f3 Qa5 12. Kb1 Rfc8 13. Bxf6 Bxf6 14. Nd5 Qxd2 15. Nxf6+ Kg7 16. Nh5+ Kh6 17. Rxd2 Kxh5 18. f4+ Kh6 19. g4 Rc5 20. g5+ Kg7 21. h4 h6 22. gxh6+ Kxh6 23. h5 Kg7 24. hxg6 fxg6 25. Rg1 Kf7 26. f5 gxf5 27. Bh5+ Kf6 28. Rg6+ Ke5 29. exf5 Bxf5 30. Rg7 Kf6 31. Rf7+ Kg5 32. Bf3 Re5 33. Rg2+ Kf4 34. Bd1 Re8 35. Kc1 {[%emt 1:35:37]} Ke4 {[%emt 1:39:36]} 36. c3 {[%emt 0:02:16]} Kd5 {[%emt 0:00:52]} 37. Rg5 {[%emt 0:02:55]} Bd3 {[%emt 0:04:15]} 38. Rg4 {[%emt 0:01:01]} Ke6 {[%emt 0:01:08]} 39. Rgf4 {[%emt 0:01:44]} Kd7 {[%emt 0:00:18]} 40. Bg4+ {[%emt 0:01:24]} Kc7 {[%emt 0:00:31]} 41. Kd2 {[%emt 0:00:38]} Bb5 {[%emt 0:00:07]} 42. a4 {[%emt 0:01:17]} Bc6 {[%emt 0:00:02]} 43. Rc4 {[%emt 0:01:10]} Kb6 {[%emt 0:00:49]} 44. Bd1 {[%emt 0:01:03]} a5 {[%emt 0:00:09]} 45. b3 {[%emt 0:00:13]} Bd5 {[%emt 0:00:06]} 46. Rcf4 {[%emt 0:00:23]} Bxf7 {[%emt 0:00:01]} 47. Rxf7 {[%emt 0:00:12]} Rh8 {[%emt 0:00:12]} 48. Rf2 {[%emt 0:00:27]} Rh3 {[%emt 0:01:20]} 49. Be2 {[%emt 0:00:17]} Ree3 {[%emt 0:00:28]} 50. Rf7 {[%emt 0:00:52]} Rxc3 {[%emt 0:01:12]} 51. Rxe7 {[%emt 0:00:39]} Rxb3 {[%emt 0:00:02]} 52. Re6 {[%emt 0:00:55]} Kc5 {[%emt 0:00:24]} 53. Re7 {[%emt 0:00:30]} Rh2 {[%emt 0:00:10]} 54. Rc7+ {[%emt 0:00:23]} Kb6 {[%emt 0:00:16]} 55. Re7 {[%emt 0:00:45]} Rb2+ {[%emt 0:00:02]} 56. Kd3 {[%emt 0:00:02]} Rhxe2 {[%emt 0:00:02]} 0-1

[Event "Istanbul Open 2018"]
[Site "Istanbul"]
[Date "2018.09.04"]
[Round "5"]
[White "Abishli, Oghuz"]
[Black "Aydin, Kaan Ayhan"]
[Result "1-0"]
[ECO "E49"]
[WhiteElo "2099"]
[BlackElo "1877"]
[Annotator "NA RC"]
[PlyCount "63"]
[EventDate "2018.09.02"]
[EventType "swiss"]
[EventCountry "TUR"]
[SourceTitle "playchess.com"]
[Source "ChessBase"]
[SourceQuality "1"]
[TimeControl "5400+30"]

1. d4 {[%emt 0:00:30]} Nf6 {[%emt 0:00:30]} 2. c4 {[%emt 0:00:00]} e6 {[%emt 0:00:00]} 3. Nc3 {[%emt 0:00:00]} Bb4 {[%emt 0:00:00]} 4. a3 {[%emt 0:01:30]} Bxc3+ {[%emt 0:00:00]} 5. bxc3 {[%emt 0:00:00]} O-O {[%emt 0:03:00]} 6. f3 {[%emt 0:00:00]} d5 {[%emt 0:01:30]} 7. cxd5 {[%emt 0:00:30]} exd5 {[%emt 0:00:30]} 8. e3 {[%emt 0:00:30] [#]} c5 $1 {[%emt 0:03:30] LiveBook: 191 Games} 9. Bd3 {[%emt 0:00:30]} b6 {[%emt 0:01:30]} 10. Ne2 {[%emt 0:00:30]} Ba6 {[%emt 0:00:30]} 11. O-O {[%emt 0:00:30]} Bxd3 {[%emt 0:00:30]} 12. Qxd3 {[%emt 0:00:00]} Nc6 {[%emt 0:00:30]} 13. e4 {[%emt 0:06:00] E49: Nimzo-Indian: Rubinstein: 5 Bd3 d5 6 a3 Bxc3+ 7 bxc3} h6 {[%emt 0:04:30]} 14. e5 {[%emt 0:02:30]} Nh7 $146 {[%emt 0:03:30]} ({Predecessor:} 14... Ne8 15. Nf4 Rc8 16. Be3 c4 17. Qf5 Ne7 18. Qh3 Rc6 19. a4 f5 20. exf6 Rfxf6 {1-0 (38) Rakhmanov,A (2639)-Das,S (2434) Dubai 2015}) 15. f4 {[%emt 0:07:30]} f5 {[%emt 0:02:30]} ({Black should play} 15... f6 $14) 16. dxc5 {[%emt 0:02:30]} bxc5 {[%emt 0:00:30]} 17. Be3 {[%emt 0:00:30]} c4 {[%emt 0:02:30]} 18. Qd2 {[%emt 0:01:30]} Qa5 {[%emt 0:02:30]} 19. Rfd1 {[%emt 0:06:30]} Rfd8 {[%emt 0:00:30]} 20. Rab1 {[%emt 0:02:30]} Nf8 $16 {[%emt 0:05:30]} 21. a4 {[%emt 0:02:30]} Ne6 {[%emt 0:02:30]} 22. Qc2 {[%emt 0:06:30]} Nc5 {[%emt 0:07:30]} 23. Qxf5 {[%emt 0:09:30]} Rf8 {[%emt 0:05:30]} 24. Qg6 {[%emt 0:02:30]} Rac8 {[%emt 0:00:30]} 25. Rxd5 {[%emt 0:11:30]} Ne7 {[%emt 0:00:30]} 26. Rxc5 {[%emt 0:00:30]} Rxc5 {[%emt 0:00:30]} 27. Qe6+ {[%emt 0:00:00]} Rf7 {[%emt 0:01:30]} 28. Rb8+ {[%emt 0:01:00]} Rc8 {[%emt 0:00:30]} 29. Rxc8+ {[%emt 0:00:00]} Nxc8 {[%emt 0:00:00]} 30. Qxc8+ {[%emt 0:00:00]} Kh7 {[%emt 0:00:00]} 31. Qxc4 {[%emt 0:00:30]} Rc7 {[%emt 0:00:30]} 32. Qb5 {[%emt 0:00:30]} 1-0